fUST/lending_fUST_20250810
["ID","MTS","AMOUNT","RATE_DAILY","PERIOD"]
[378205247,1754786762908,300.0,0.0002109,2]
[378205248,1754786769551,460.0,0.0002109,2]
[378205249,1754786793459,546.29494854,0.0002109,2]
[378205250,1754786800290,460.0,0.0002109,2]
[378205251,1754786823410,300.0,0.0002109,2]
[378205252,1754786826880,500.0,0.0002109,2]
[378205253,1754786827911,487.5436685,0.00020991,2]
[378205254,1754786831040,460.0,0.0002109,2]
[378205255,1754786848888,460.0,0.0002109,2]
[378205256,1754786852690,460.0,0.0002109,2]
[378205257,1754786854886,460.0,0.0002109,2]
[378205258,1754786861995,460.0,0.0002109,2]
[378205259,1754786866007,460.0,0.0002109,2]
[378205260,1754786868564,887.6,0.0002109,2]
[378205261,1754786880374,892.7108048,0.000199,2]
[378205262,1754786882824,300.0,0.0002109,2]
[378205263,1754786894286,460.0,0.0002109,2]
[378205264,1754786900159,460.0,0.0002109,2]
[378205265,1754786906389,460.0,0.0002109,2]
[378205266,1754786933078,460.0,0.0002109,2]
[378205267,1754786933282,489.92,0.0002109,2]
[378205268,1754786937771,460.0,0.0002109,2]
[378205269,1754786937988,256.54707555,0.0002109,2]
[378205270,1754786946749,300.0,0.0002109,2]
[378205271,1754786974642,460.0,0.0002109,2]
[378205272,1754786974694,460.0,0.0002109,2]
[378205273,1754786978722,460.0,0.0002109,2]
[378205274,1754786984798,460.0,0.0002109,2]
[378205283,1754786994073,186.38637237,0.0001899,2]
[378205284,1754786996668,277.52811,0.00013699,2]
[378205285,1754786996907,277.52811,0.00020187,2]
[378205287,1754787002969,300.0,0.0002109,2]
[378205288,1754787012319,570.44,0.0002109,2]
[378205289,1754787026801,184.13,0.00021083,10]
[378205290,1754787027642,460.0,0.0002109,2]
[378205291,1754787030875,460.0,0.0002109,2]
[378205329,1754787032835,-500.0,0.00021091,2]
[378205331,1754787032845,-460.0,0.00021091,2]
[378205333,1754787032855,-487.57,0.00021091,2]
[378205336,1754787032864,-460.0,0.00021091,2]
[378205337,1754787032873,-460.0,0.00021091,2]
[378205339,1754787032883,-460.0,0.00021091,2]
[378205341,1754787032893,-460.0,0.00021091,2]
[378205344,1754787032905,-460.0,0.00021091,2]
[378205346,1754787032915,-460.0,0.00021091,2]
[378205348,1754787032925,-471.34308145,0.00021091,2]
[378205350,1754787032934,-461.33665123,0.00021091,2]
[378205352,1754787032944,-460.0,0.00021091,2]
[378205355,1754787032954,-460.0,0.00021091,2]
[378205356,1754787032963,-460.0,0.00021091,2]
[378205358,1754787032972,-460.0,0.00021091,2]
[378205361,1754787032982,-164.042042,0.00021091,2]
[378205363,1754787032991,-460.0,0.00021091,2]
[378205365,1754787033001,-460.0,0.00021091,2]
[378205366,1754787033011,-460.0,0.00021091,2]
[378205367,1754787033021,-460.0,0.00021091,2]
[378205368,1754787033031,-460.0,0.00021091,2]
[378205369,1754787033042,-468.17030525,0.00021091,2]
[378205370,1754787033053,-460.0,0.00021091,2]
[378205371,1754787033064,-460.0,0.00021091,2]
[378205372,1754787033074,-460.0,0.00021091,2]
[378205373,1754787033084,-460.0,0.00021091,2]
[378205374,1754787033094,-460.0,0.00021091,2]
[378205375,1754787033104,-460.0,0.00021091,2]
[378205376,1754787033116,-460.0,0.00021091,2]
[378205377,1754787033126,-460.0,0.00021091,2]
[378205378,1754787033137,-460.0,0.00021091,2]
[378205379,1754787033148,-460.0,0.00021091,2]
[378205380,1754787033158,-460.0,0.00021091,2]
[378205381,1754787033167,-460.0,0.00021091,2]
[378205382,1754787033177,-460.0,0.00021091,2]
[378205383,1754787033187,-460.0,0.00021091,2]
[378205384,1754787033200,-428.04124918,0.00021091,2]
[378205385,1754787033209,-460.0,0.00021091,2]
[378205386,1754787033219,-388.52180565,0.00021091,2]
[378205387,1754787033229,-460.0,0.00021091,2]
[378205388,1754787033240,-463.91768625,0.00021091,2]
[378205389,1754787033249,-460.0,0.00021091,2]
[378205390,1754787033258,-460.0,0.00021091,2]
[378205391,1754787033267,-460.0,0.00021091,2]
[378205392,1754787033277,-460.0,0.00021091,2]
[378205393,1754787033287,-460.0,0.00021091,2]
[378205394,1754787033297,-460.0,0.00021091,2]
[378205395,1754787033306,-460.0,0.00021091,2]
[378205396,1754787033316,-464.65113292,0.00021091,2]
[378205397,1754787033325,-460.0,0.00021091,2]
[378205399,1754787033335,-460.0,0.00021091,2]
[378205401,1754787033344,-460.0,0.00021091,2]
[378205403,1754787033354,-460.0,0.00021091,2]
[378205405,1754787033367,-460.0,0.00021091,2]
[378205407,1754787033376,-460.0,0.00021091,2]
[378205409,1754787033386,-460.0,0.00021091,2]
[378205411,1754787033395,-460.0,0.00021091,2]
[378205413,1754787033405,-460.0,0.00021091,2]
[378205415,1754787033415,-460.0,0.00021091,2]
[378205417,1754787033424,-460.0,0.00021091,2]
[378205419,1754787033434,-460.0,0.00021091,2]
[378205421,1754787033444,-460.0,0.00021091,2]
[378205423,1754787033453,-460.0,0.00021091,2]
[378205425,1754787033463,-460.0,0.00021091,2]
[378205427,1754787033472,-460.0,0.00021091,2]
[378205429,1754787033482,-460.0,0.00021091,2]
[378205432,1754787033491,-460.0,0.00021091,2]
[378205435,1754787033501,-460.0,0.00021091,2]
[378205437,1754787033510,-488.01812076,0.00021091,2]
[378205439,1754787033520,-460.0,0.00021091,2]
[378205441,1754787033529,-331.59990986,0.00021091,2]
[378205443,1754787033538,-460.0,0.00021091,2]
[378205445,1754787033548,-460.0,0.00021091,2]
[378205447,1754787033557,-460.0,0.00021091,2]
[378205449,1754787033567,-322.44860229,0.00021091,2]
[378205451,1754787033576,-472.444121,0.00021091,2]
[378205453,1754787033586,-460.0,0.00021091,2]
[378205455,1754787033595,-460.0,0.00021091,2]
[378205457,1754787033604,-460.0,0.00021091,2]
[378205459,1754787033613,-460.0,0.00021091,2]
[378205461,1754787033622,-499.24051854,0.00021091,2]
[378205463,1754787033632,-476.3659133,0.00021091,2]
[378205465,1754787033641,-460.0,0.00021091,2]
[378205467,1754787033652,-460.0,0.00021091,2]
[378205469,1754787033662,-460.0,0.00021091,2]
[378205471,1754787033671,-460.0,0.00021091,2]
[378205473,1754787033681,-460.0,0.00021091,2]
[378205475,1754787033691,-460.0,0.00021091,2]
[378205476,1754787033699,-460.0,0.00021091,2]
[378205478,1754787033709,-277.04727961,0.00021091,2]
[378205481,1754787033719,-460.0,0.00021091,2]
[378205482,1754787033729,-460.0,0.00021091,2]
[378205485,1754787033740,-460.0,0.00021091,2]
[378205486,1754787033750,-460.0,0.00021092,2]
[378205489,1754787033760,-460.0,0.00021092,2]
[378205491,1754787033771,-460.0,0.00021092,2]
[378205493,1754787033780,-460.0,0.00021092,2]
[378205495,1754787033790,-355.11154633,0.00021092,2]
[378205496,1754787033799,-460.0,0.00021092,2]
[378205498,1754787033809,-460.0,0.00021092,2]
[378205500,1754787033819,-460.0,0.00021092,2]
[378205502,1754787033829,-464.21,0.00021092,2]
[378205504,1754787033838,-460.0,0.00021092,2]
[378205506,1754787033849,-543.70025801,0.00021092,2]
[378205508,1754787033858,-478.58050286,0.00021092,2]
[378205511,1754787033868,-460.0,0.00021092,2]
[378205513,1754787033877,-1399.06,0.00021092,2]
[378205514,1754787033886,-460.0,0.00021092,2]
[378205516,1754787033896,-460.0,0.00021092,2]
[378205519,1754787033906,-460.0,0.00021092,2]
[378205521,1754787033915,-460.0,0.00021092,2]
[378205523,1754787033924,-460.0,0.00021092,2]
[378205524,1754787033934,-460.0,0.00021093,2]
[378205527,1754787033944,-460.0,0.00021093,2]
[378205529,1754787033953,-460.0,0.00021093,2]
[378205531,1754787033962,-460.0,0.00021093,2]
[378205533,1754787033972,-500.0,0.00021093,2]
[378205534,1754787033982,-460.0,0.00021093,2]
[378205535,1754787033991,-460.0,0.00021093,2]
[378205536,1754787034000,-460.0,0.00021093,2]
[378205538,1754787034011,-460.0,0.00021093,2]
[378205541,1754787034021,-460.0,0.00021093,2]
[378205543,1754787034031,-460.0,0.00021093,2]
[378205545,1754787034040,-460.0,0.00021093,2]
[378205547,1754787034050,-460.0,0.00021093,2]
[378205549,1754787034059,-220.96,0.00021354,10]
[378205551,1754787034069,-343.51478512,0.00021364,2]
[378205552,1754787034078,-460.0,0.00021364,2]
[378205554,1754787034088,-460.0,0.00021364,2]
[378205557,1754787034098,-460.0,0.00021364,2]
[378205559,1754787034107,-887.6,0.00021364,2]
[378205560,1754787034117,-460.0,0.00021364,2]
[378205562,1754787034127,-460.0,0.00021364,2]
[378205564,1754787034136,-460.0,0.00021364,2]
[378205567,1754787034146,-442.21,0.00021364,2]
[378205568,1754787034157,-460.0,0.00021364,2]
[378205570,1754787034166,-570.44,0.00021364,2]
[378205572,1754787034175,-470.77,0.00021365,2]
[378205574,1754787034186,-460.0,0.00021365,2]
[378205576,1754787034200,-460.0,0.00021365,2]
[378205579,1754787034210,-460.0,0.00021365,2]
[378205581,1754787034219,-460.0,0.00021365,2]
[378205582,1754787034229,-460.0,0.00021365,2]
[378205584,1754787034240,-460.0,0.00021365,2]
[378205586,1754787034250,-585.84,0.00021365,2]
[378205588,1754787034260,-460.0,0.00021365,2]
[378205591,1754787034272,-460.0,0.00021365,2]
[378205593,1754787034283,-460.0,0.00021365,2]
[378205594,1754787034293,-460.0,0.00021365,2]
[378205597,1754787034304,-460.0,0.00021365,2]
[378205599,1754787034313,-460.0,0.00021365,2]
[378205601,1754787034325,-460.0,0.00021365,2]
[378205603,1754787034335,-460.0,0.00021365,2]
[378205605,1754787034345,-460.0,0.00021365,2]
[378205607,1754787034355,-460.0,0.00021365,2]
[378205609,1754787034365,-479.85849401,0.00021365,2]
[378205611,1754787034375,-460.0,0.00021365,2]
[378205612,1754787034385,-460.0,0.00021365,2]
[378205614,1754787034395,-460.0,0.00021365,2]
[378205616,1754787034407,-460.0,0.00021365,2]
[378205619,1754787034417,-460.0,0.00021365,2]
[378205621,1754787034427,-460.0,0.00021365,2]
[378205622,1754787034436,-460.0,0.00021365,2]
[378205624,1754787034446,-364.05178904,0.00021365,2]
[378205626,1754787034456,-460.0,0.00021365,2]
[378205628,1754787034465,-483.41811614,0.00021365,2]
[378205630,1754787034475,-460.0,0.00021365,2]
[378205632,1754787034484,-460.0,0.00021365,2]
[378205634,1754787034494,-460.0,0.00021365,2]
[378205636,1754787034503,-460.0,0.00021365,2]
[378205639,1754787034513,-460.0,0.00021365,2]
[378205641,1754787034522,-460.0,0.00021365,2]
[378205643,1754787034532,-303.49,0.00021365,2]
[378205644,1754787034541,-460.0,0.00021365,2]
[378205646,1754787034551,-460.0,0.00021365,2]
[378205648,1754787034561,-460.0,0.00021365,2]
[378205650,1754787034571,-460.0,0.00021365,2]
[378205652,1754787034580,-460.0,0.00021365,2]
[378205654,1754787034591,-460.0,0.00021365,2]
[378205656,1754787034601,-460.0,0.00021365,2]
[378205659,1754787034611,-461.55490506,0.00021365,2]
[378205661,1754787034620,-460.0,0.00021365,2]
[378205663,1754787034630,-460.0,0.00021365,2]
[378205665,1754787034640,-460.0,0.00021365,2]
[378205667,1754787034651,-460.0,0.00021365,2]
[378205669,1754787034662,-460.0,0.00021365,2]
[378205671,1754787034672,-460.0,0.00021365,2]
[378205673,1754787034682,-460.0,0.00021366,2]
[378205675,1754787034692,-609.92,0.00021366,2]
[378205677,1754787034702,-460.0,0.00021366,2]
[378205678,1754787034711,-187.61,0.00021366,2]
[378205681,1754787034721,-464.21,0.00021366,2]
[378205683,1754787034731,-460.0,0.00021366,2]
[378205684,1754787034740,-1399.06,0.00021366,2]
[378205686,1754787034749,-460.0,0.00021366,2]
[378205688,1754787034759,-460.0,0.00021366,2]
[378205691,1754787034769,-460.0,0.00021367,2]
[378205693,1754787034779,-460.0,0.00021367,2]
[378205694,1754787034788,-460.0,0.00021367,2]
[378205697,1754787034798,-460.0,0.00021367,2]
[378205699,1754787034808,-460.0,0.00021638,2]
[378205701,1754787034817,-460.0,0.00021638,2]
[378205703,1754787034827,-887.6,0.00021638,2]
[378205705,1754787034836,-384.55,0.00021638,2]
[378205707,1754787034846,-460.0,0.00021638,2]
[378205709,1754787034855,-460.0,0.00021638,2]
[378205711,1754787034866,-290.70830214,0.00021638,2]
[378205713,1754787034875,-570.44,0.00021638,2]
[378205715,1754787034885,-500.0,0.00021638,2]
[378205717,1754787034895,-500.0,0.00021638,2]
[378205719,1754787034906,-500.0,0.00021638,2]
[378205721,1754787034916,-277.99040386,0.00021638,2]
[378205723,1754787034926,-500.0,0.00021638,2]
[378205725,1754787034936,-500.0,0.00021638,2]
[378205727,1754787034946,-500.0,0.00021638,2]
[378205729,1754787034955,-465.38850001,0.00021638,2]
[378205731,1754787034966,-500.0,0.00021638,2]
[378205733,1754787034975,-500.0,0.00021638,2]
[378205735,1754787034985,-466.99,0.00021639,2]
[378205737,1754787034995,-605.05,0.00021639,2]
[378205739,1754787035005,-460.0,0.00021639,2]
[378205741,1754787035014,-460.0,0.00021639,2]
[378205743,1754787035023,-460.0,0.00021639,2]
[378205745,1754787035033,-460.0,0.00021639,2]
[378205747,1754787035042,-460.0,0.00021639,2]
[378205749,1754787035051,-460.0,0.00021639,2]
[378205751,1754787035060,-460.0,0.00021639,2]
[378205753,1754787035070,-460.0,0.00021639,2]
[378205755,1754787035079,-460.0,0.00021639,2]
[378205757,1754787035088,-460.0,0.00021639,2]
[378205759,1754787035098,-460.0,0.00021639,2]
[378205761,1754787035107,-460.0,0.00021639,2]
[378205763,1754787035116,-460.0,0.00021639,2]
[378205765,1754787035126,-460.0,0.00021639,2]
[378205767,1754787035135,-460.0,0.00021639,2]
[378205769,1754787035145,-460.0,0.00021639,2]
[378205771,1754787035156,-460.0,0.00021639,2]
[378205773,1754787035165,-460.0,0.00021639,2]
[378205775,1754787035174,-460.0,0.00021639,2]
[378205777,1754787035184,-472.77,0.00021639,2]
[378205779,1754787035196,-460.0,0.00021639,2]
[378205781,1754787035206,-234.68167474,0.00021639,2]
[378205783,1754787035216,-460.0,0.00021639,2]
[378205785,1754787035225,-298.90222615,0.00021639,2]
[378205787,1754787035236,-314.47356985,0.00021639,2]
[378205789,1754787035245,-460.0,0.00021639,2]
[378205791,1754787035255,-460.0,0.00021639,2]
[378205793,1754787035265,-460.0,0.0002164,2]
[378205795,1754787035275,-464.21,0.0002164,2]
[378205797,1754787035285,-460.0,0.0002164,2]
[378205799,1754787035294,-1399.06,0.0002164,2]
[378205801,1754787035303,-460.0,0.0002164,2]
[378205803,1754787035313,-331.94,0.0002164,2]
[378205805,1754787035324,-460.0,0.00021641,2]
[378205806,1754787035333,-460.0,0.00021641,2]
[378205808,1754787035344,-460.0,0.00021641,2]
[378205809,1754787035354,-892.71080465,0.00021655,2]
[378205810,1754787035363,-302.00006181,0.00021721,2]
[378205811,1754787035373,-460.0,0.00021912,2]
[378205812,1754787035382,-460.0,0.00021912,2]
[378205813,1754787035392,-887.6,0.00021912,2]
[378205814,1754787035402,-460.0,0.00021912,2]
[378205815,1754787035412,-460.0,0.00021912,2]
[378205816,1754787035421,-570.44,0.00021912,2]
[378205817,1754787035431,-460.0,0.00021913,2]
[378205818,1754787035441,-460.0,0.00021913,2]
[378205819,1754787035450,-189.05,0.00021913,2]
[378205820,1754787035459,-460.0,0.00021913,2]
[378205821,1754787035469,-220.7008675,0.00021913,2]
[378205822,1754787035479,-460.0,0.00021913,2]
[378205823,1754787035489,-460.0,0.00021913,2]
[378205824,1754787035498,-460.0,0.00021913,2]
[378205825,1754787035507,-460.0,0.00021913,2]
[378205826,1754787035517,-460.0,0.00021913,2]
[378205827,1754787035526,-460.0,0.00021913,2]
[378205828,1754787035535,-52.01170436,0.00021913,2]
[378205829,1754787035655,-407.98829564,0.00021913,2]
[378205830,1754787035664,-460.0,0.00021913,2]
[378205831,1754787035674,-460.0,0.00021913,2]
[378205832,1754787035684,-460.0,0.00021913,2]
[378205833,1754787035694,-460.0,0.00021913,2]
[378205834,1754787035704,-460.0,0.00021913,2]
[378205835,1754787035713,-460.0,0.00021913,2]
[378205836,1754787035723,-338.37843428,0.00021913,2]
[378205837,1754787035745,-500.0,0.00021638,2]
[378205838,1754787035755,-500.0,0.00021638,2]
[378205839,1754787035765,-121.62156572,0.00021913,2]
[378205840,1754787035774,-465.96,0.00021913,2]
[378205841,1754787035784,-460.0,0.00021913,2]
[378205842,1754787035793,-482.86,0.00021914,2]
[378205843,1754787035813,-464.21,0.00021914,2]
[378205844,1754787035824,-460.0,0.00021914,2]
[378205845,1754787035834,-1399.06,0.00021914,2]
[378205846,1754787035843,-460.0,0.00021914,2]
[378205847,1754787035854,-460.0,0.00021915,2]
[378205848,1754787035864,-207.0,0.00021915,2]
[378205849,1754787035874,-460.0,0.00021915,2]
[378205850,1754787035884,-2291.73,0.00021917,2]
[378205851,1754787035894,-158.0,0.00022,2]
[378205852,1754787035906,-153.67,0.00022131,2]
[378205853,1754787035916,-200.0,0.00022144,15]
[378205854,1754787035926,-300.0,0.00022144,15]
[378205855,1754787035935,-785.76,0.00022144,2]
[378205856,1754787035946,-460.0,0.00022186,2]
[378205857,1754787035957,-460.0,0.00022186,2]
[378205858,1754787035967,-887.6,0.00022186,2]
[378205859,1754787035978,-460.0,0.00022186,2]
[378205860,1754787035988,-460.0,0.00022186,2]
[378205861,1754787035998,-570.44,0.00022186,2]
[378205862,1754787036010,-460.0,0.00022187,2]
[378205863,1754787036021,-460.0,0.00022187,2]
[378205864,1754787036031,-460.0,0.00022187,2]
[378205865,1754787036041,-460.0,0.00022187,2]
[378205866,1754787036052,-460.0,0.00022187,2]
[378205867,1754787036062,-460.0,0.00022187,2]
[378205868,1754787036071,-460.0,0.00022187,2]
[378205869,1754787036081,-460.0,0.00022187,2]
[378205870,1754787036091,-460.0,0.00022187,2]
[378205871,1754787036101,-478.30111258,0.00022187,2]
[378205872,1754787036111,-460.0,0.00022187,2]
[378205873,1754787036121,-460.0,0.00022187,2]
[378205874,1754787036131,-460.0,0.00022187,2]
[378205875,1754787036141,-460.0,0.00022187,2]
[378205876,1754787036152,-583.88710361,0.00022187,2]
[378205877,1754787036162,-460.0,0.00022187,2]
[378205878,1754787036172,-460.0,0.00022187,2]
[378205879,1754787036182,-222.12504001,0.00022187,2]
[378205880,1754787036193,-464.21,0.00022188,2]
[378205881,1754787036203,-460.0,0.00022188,2]
[378205882,1754787036213,-1399.06,0.00022188,2]
[378205883,1754787036223,-460.0,0.00022188,2]
[378205884,1754787036233,-460.0,0.00022189,2]
[378205885,1754787036419,-460.0,0.00022189,2]
[378205886,1754787036430,-151.0,0.00022363,2]
[378205887,1754787036440,-460.0,0.0002246,2]
[378205888,1754787036450,-460.0,0.0002246,2]
[378205889,1754787036460,-887.6,0.0002246,2]
[378205890,1754787036470,-460.0,0.0002246,2]
[378205891,1754787036480,-460.0,0.0002246,2]
[378205892,1754787036490,-570.44,0.0002246,2]
[378205893,1754787036499,-460.0,0.00022461,2]
[378205894,1754787036509,-460.0,0.00022461,2]
[378205895,1754787036519,-460.0,0.00022461,2]
[378205896,1754787036528,-460.0,0.00022461,2]
[378205897,1754787036539,-389.67001721,0.00022461,2]
[378205898,1754787036549,-460.0,0.00022461,2]
[378205899,1754787036559,-460.0,0.00022461,2]
[378205900,1754787036568,-460.0,0.00022461,2]
[378205901,1754787036579,-235.73330088,0.00022461,2]
[378205902,1754787036589,-460.0,0.00022461,2]
[378205903,1754787036599,-418.88,0.00022461,2]
[378205904,1754787036608,-460.0,0.00022461,2]
[378205905,1754787036618,-464.21,0.00022462,2]
[378205906,1754787036628,-460.0,0.00022462,2]
[378205907,1754787036637,-1399.06,0.00022462,2]
[378205908,1754787036647,-460.0,0.00022462,2]
[378205909,1754787036658,-460.0,0.00022463,2]
[378205910,1754787036668,-460.0,0.00022463,2]
[378205911,1754787036677,-151.0,0.00022463,7]
[378205912,1754787036688,-281.41,0.00022645,2]
[378205913,1754787036698,-460.0,0.00022734,2]
[378205914,1754787036708,-337.26,0.00022734,2]
[378205915,1754787036718,-887.6,0.00022734,2]
[378205916,1754787036727,-525.15,0.00022734,2]
[378205917,1754787036737,-460.0,0.00022734,2]
[378205918,1754787036747,-570.44,0.00022734,2]
[378205919,1754787036756,-460.0,0.00022735,2]
[378205920,1754787036766,-460.0,0.00022735,2]
[378205921,1754787036776,-460.0,0.00022735,2]
[378205922,1754787036785,-460.0,0.00022735,2]
[378205923,1754787036794,-460.0,0.00022735,2]
[378205924,1754787036804,-460.0,0.00022735,2]
[378205925,1754787036814,-460.0,0.00022735,2]
[378205926,1754787036824,-460.0,0.00022735,2]
[378205927,1754787036834,-226.27,0.00022735,2]
[378205928,1754787036843,-464.21,0.00022736,2]
[378205929,1754787036853,-460.0,0.00022736,2]
[378205930,1754787036863,-1399.06,0.00022736,2]
[378205931,1754787036873,-460.0,0.00022736,2]
[378205932,1754787036883,-460.0,0.00022737,2]
[378205933,1754787036893,-460.0,0.00022737,2]
[378205934,1754787036903,-12666.14847857,0.00022822,2]
[378205935,1754787036912,-842.07,0.0002283,3]
[378205936,1754787036922,-160.0,0.00022833,2]
[378205937,1754787036931,-527.77735381,0.00022833,2]
[378205938,1754787036940,-160.0,0.00022833,2]
[378205939,1754787036949,-842.95011917,0.00022833,2]
[378205940,1754787036958,-461.55179734,0.00022833,2]
[378205941,1754787036967,-160.0,0.00022833,2]
[378205942,1754787036976,-215.40758176,0.00022833,2]
[378205943,1754787036986,-160.0,0.00022833,2]
[378205944,1754787036995,-216.61183532,0.00022833,2]
[378205945,1754787037006,-231.92402426,0.00022833,2]
[378205946,1754787037015,-312.16666667,0.00022834,2]
[378205947,1754787037025,-160.0,0.00022834,2]
[378205948,1754787037035,-151.0,0.00022909,7]
[378205949,1754787037044,-151.0,0.00022909,7]
[378205950,1754787037054,-151.0,0.00022909,7]
[378205951,1754787037063,-10167.02989959,0.00022909,2]
[378205954,1754787038227,460.0,0.0002109,2]
[378205993,1754787038663,-460.0,0.00021366,2]
[378205996,1754787038673,-500.0,0.00021638,2]
[378205998,1754787038682,-196.81115138,0.00021638,2]
[378206000,1754787038694,-303.18884862,0.00021638,2]
[378206002,1754787038704,-500.0,0.00021638,2]
[378206004,1754787038713,-500.0,0.00021638,2]
[378206006,1754787038723,-500.0,0.00021638,2]
[378206008,1754787038732,-500.0,0.00021638,2]
[378206010,1754787038741,-500.0,0.00021638,2]
[378206012,1754787038763,-500.0,0.00021638,2]
[378206014,1754787038776,-500.0,0.00021638,2]
[378206016,1754787038785,-500.0,0.00021638,2]
[378206018,1754787038795,-460.0,0.0002164,2]
[378206020,1754787038804,-460.0,0.00021914,2]
[378206022,1754787038814,-460.0,0.00022188,2]
[378206024,1754787038823,-478.17268637,0.00022462,2]
[378206026,1754787038832,-19785.83846501,0.00022909,2]
[378206211,1754787040830,-460.0,0.00021091,2]
[378206213,1754787040840,-360.69,0.00021364,2]
[378206215,1754787040849,-460.0,0.00021365,2]
[378206217,1754787040859,-438.17034993,0.00021639,2]
[378206219,1754787040868,-701.74042865,0.00021917,2]
[378206221,1754787040880,-1494.49957135,0.00021917,2]
[378206223,1754787040898,-7710.85567669,0.00022909,2]
[378206225,1754787040916,-22336.27595871,0.00022909,2]
[378206227,1754787040926,-160.0,0.00022921,2]
[378206229,1754787040936,-420.0,0.00022939,2]
[378206231,1754787040945,-150.0,0.00022973,2]
[378206234,1754787040955,-500.0,0.00022973,2]
[378206235,1754787040964,-160.0,0.00023,2]
[378206237,1754787040973,-460.0,0.00023008,2]
[378206239,1754787040982,-887.6,0.00023008,2]
[378206241,1754787040992,-203.43,0.00023008,2]
[378206243,1754787041001,-570.44,0.00023008,2]
[378206246,1754787041010,-460.0,0.00023009,2]
[378206248,1754787041020,-294.7606384,0.00023009,2]
[378206250,1754787041031,-490.87567935,0.00023009,2]
[378206252,1754787041041,-460.0,0.00023009,2]
[378206254,1754787041051,-460.0,0.00023009,2]
[378206256,1754787041061,-460.0,0.00023009,2]
[378206258,1754787041072,-460.0,0.00023009,2]
[378206260,1754787041082,-464.21,0.0002301,2]
[378206261,1754787041092,-460.0,0.0002301,2]
[378206264,1754787041102,-1399.06,0.0002301,2]
[378206265,1754787041112,-460.0,0.0002301,2]
[378206268,1754787041122,-460.0,0.00023011,2]
[378206269,1754787041131,-158.0,0.00023014,7]
[378206272,1754787041141,-1925.86358941,0.00023174,2]
[378206273,1754787041150,-4328.85988309,0.00023174,2]
[378206276,1754787041162,-460.0,0.00023282,2]
[378206277,1754787041171,-887.6,0.00023282,2]
[378206279,1754787041181,-570.44,0.00023282,2]
[378206281,1754787041191,-460.0,0.00023283,2]
[378206284,1754787041203,-460.0,0.00023283,2]
[378206285,1754787041212,-460.0,0.00023283,2]
[378206287,1754787041222,-460.0,0.00023283,2]
[378206289,1754787041231,-460.0,0.00023283,2]
[378206292,1754787041241,-464.21,0.00023284,2]
[378206294,1754787041250,-460.0,0.00023284,2]
[378206295,1754787041259,-1399.06,0.00023284,2]
[378206297,1754787041268,-460.0,0.00023284,2]
[378206299,1754787041278,-559.30625632,0.00023285,2]
[378206301,1754787041288,-785.76,0.00023321,2]
[378206303,1754787041297,-892.71080465,0.00023409,2]